[Event "Titled Tuesday Blitz December 14 2021"]
[White "Fawzy, Adham"]
[Black "Ibrahimli, Murad"]
[WhiteFideId "10613129"]
[BlackFideId "13410229"]
[WhiteElo "2508"]
[BlackElo "2109"]
[Result "0-1"]
[Round "05"]
[TimeControl "180+1"]
[Date "2021.12.14"]
[WhiteClock "0:00:02"]
[BlackClock "0:00:01"]

1. e4 {[%clk 0:01:44]}  c5 {[%clk 0:02:55]} 2. c4 {[%clk 0:01:44]}  Nc6 {[%clk 0:02:54]} 3. Nc3 {[%clk 0:01:45]}  g6 {[%clk 0:02:54]} 4. d3 {[%clk 0:01:46]}  Bg7 {[%clk 0:02:54]} 5. g3 {[%clk 0:01:46]}  d6 {[%clk 0:02:53]} 6. Bg2 {[%clk 0:01:47]}  h5 {[%clk 0:02:53]} 7. h3 {[%clk 0:01:47]}  Nf6 {[%clk 0:02:49]} 8. Nge2 {[%clk 0:01:47]}  e5 {[%clk 0:02:46]} 9. Be3 {[%clk 0:01:47]}  Be6 {[%clk 0:02:46]} 10. O-O {[%clk 0:01:45]}  Qd7 {[%clk 0:02:43]} 11. Kh2 {[%clk 0:01:45]}  Nd4 {[%clk 0:02:23]} 12. Nd5 {[%clk 0:01:45]}  Bxd5 {[%clk 0:02:06]} 13. cxd5 {[%clk 0:01:36]}  Nxe2 {[%clk 0:02:06]} 14. Qxe2 {[%clk 0:01:36]}  Bh6 {[%clk 0:02:01]} 15. f4 {[%clk 0:01:35]}  h4 {[%clk 0:02:01]} 16. fxe5 {[%clk 0:01:18]}  hxg3+ {[%clk 0:01:58]} 17. Kg1 {[%clk 0:01:17]}  Bxe3+ {[%clk 0:01:20]} 18. Qxe3 {[%clk 0:01:18]}  Nh5 {[%clk 0:01:20]} 19. exd6 {[%clk 0:00:52]}  Qxd6 {[%clk 0:01:17]} 20. e5 {[%clk 0:00:52]}  Qb6 {[%clk 0:01:17]} 21. d6 {[%clk 0:00:38]}  O-O {[%clk 0:01:09]} 22. Bd5 {[%clk 0:00:37]}  Kg7 {[%clk 0:01:00]} 23. Rac1 {[%clk 0:00:27]}  Rac8 {[%clk 0:00:50]} 24. b3 {[%clk 0:00:14]}  Qd8 {[%clk 0:00:23]} 25. Rf3 {[%clk 0:00:12]}  b6 {[%clk 0:00:20]} 26. Rcf1 {[%clk 0:00:12]}  f5 {[%clk 0:00:20]} 27. exf6+ {[%clk 0:00:10]}  Rxf6 {[%clk 0:00:21]} 28. Rxf6 {[%clk 0:00:08]}  Nxf6 {[%clk 0:00:21]} 29. Qe5 {[%clk 0:00:07]}  Qf8 {[%clk 0:00:16]} 30. Be6 {[%clk 0:00:06]}  Rd8 {[%clk 0:00:14]} 31. Kg2 {[%clk 0:00:03]}  Rxd6 {[%clk 0:00:10]} 32. Rf3 {[%clk 0:00:02]}  Rd8 {[%clk 0:00:09]} 33. Rxg3 {[%clk 0:00:02]}  Re8 {[%clk 0:00:04]} 34. Qf5 {[%clk 0:00:01]}  Nh7 {[%clk 0:00:02]} 35. Qxg6+ {[%clk 0:00:01]}  Kh8 {[%clk 0:00:02]} 36. Bf7 {[%clk 0:00:02]}  Re2+ {[%clk 0:00:02]} 37. Kh1 {[%clk 0:00:01]}  Re1+ {[%clk 0:00:02]} 38. Kh2 {[%clk 0:00:01]}  Re2+ {[%clk 0:00:02]} 39. Rg2 {[%clk 0:00:02]}  Rxg2+ {[%clk 0:00:03]} 40. Kxg2 {[%clk 0:00:03]}  Qg7 {[%clk 0:00:02]} 41. Kg3 {[%clk 0:00:02]}  Nf6 {[%clk 0:00:02]} 42. Kf4 {[%clk 0:00:02]}  Nd5+ {[%clk 0:00:01]} 0-1


[Site "https://www.chess.com"]

[Event "Titled Tuesday Blitz December 14 2021"]
[White "Gaehwiler, Gabriel"]
[Black "Le, Tuan Minh"]
[WhiteFideId "1314530"]
[BlackFideId "12401153"]
[WhiteElo "2383"]
[BlackElo "2450"]
[Result "0-1"]
[Round "05"]
[TimeControl "180+1"]
[Date "2021.12.14"]
[WhiteClock "0:00:09"]
[BlackClock "0:00:12"]

1. d4 {[%clk 0:03:00]}  d5 {[%clk 0:02:51]} 2. c4 {[%clk 0:02:58]}  c6 {[%clk 0:02:50]} 3. Nf3 {[%clk 0:02:58]}  Nf6 {[%clk 0:02:50]} 4. Nc3 {[%clk 0:02:58]}  a6 {[%clk 0:02:50]} 5. g3 {[%clk 0:02:58]}  Bf5 {[%clk 0:02:50]} 6. cxd5 {[%clk 0:02:57]}  cxd5 {[%clk 0:02:50]} 7. Qb3 {[%clk 0:02:57]}  b5 {[%clk 0:02:45]} 8. Bg2 {[%clk 0:02:55]}  e6 {[%clk 0:02:45]} 9. O-O {[%clk 0:02:54]}  Nc6 {[%clk 0:02:44]} 10. Bg5 {[%clk 0:02:50]}  Be7 {[%clk 0:02:43]} 11. Rfc1 {[%clk 0:02:48]}  Rc8 {[%clk 0:02:43]} 12. Nxb5 {[%clk 0:02:26]}  axb5 {[%clk 0:01:22]} 13. Qxb5 {[%clk 0:02:26]}  O-O {[%clk 0:01:22]} 14. Rxc6 {[%clk 0:02:18]}  Rb8 {[%clk 0:01:22]} 15. Qa6 {[%clk 0:01:53]}  Rxb2 {[%clk 0:01:22]} 16. Ne5 {[%clk 0:01:48]}  h6 {[%clk 0:01:18]} 17. Bc1 {[%clk 0:01:44]}  Rb4 {[%clk 0:01:11]} 18. Ba3 {[%clk 0:01:21]}  Rxd4 {[%clk 0:00:49]} 19. e3 {[%clk 0:01:21]}  Rd2 {[%clk 0:00:45]} 20. Bxe7 {[%clk 0:01:10]}  Qxe7 {[%clk 0:00:46]} 21. Qa5 {[%clk 0:01:00]}  Rb2 {[%clk 0:00:44]} 22. Qc3 {[%clk 0:00:55]}  Qb7 {[%clk 0:00:31]} 23. Rc7 {[%clk 0:00:47]}  Qb8 {[%clk 0:00:31]} 24. h3 {[%clk 0:00:45]}  Be4 {[%clk 0:00:28]} 25. Bf1 {[%clk 0:00:44]}  Rc2 {[%clk 0:00:23]} 26. Qxc2 {[%clk 0:00:28]}  Bxc2 {[%clk 0:00:23]} 27. Rxc2 {[%clk 0:00:28]}  Qxe5 {[%clk 0:00:23]} 28. Rb1 {[%clk 0:00:29]}  Ra8 {[%clk 0:00:21]} 29. Rbb2 {[%clk 0:00:29]}  Ne4 {[%clk 0:00:21]} 30. Bd3 {[%clk 0:00:29]}  Ng5 {[%clk 0:00:20]} 31. Kg2 {[%clk 0:00:27]}  g6 {[%clk 0:00:20]} 32. Re2 {[%clk 0:00:25]}  Qf6 {[%clk 0:00:19]} 33. Rbc2 {[%clk 0:00:15]}  Qf3+ {[%clk 0:00:19]} 34. Kh2 {[%clk 0:00:16]}  Rb8 {[%clk 0:00:16]} 35. h4 {[%clk 0:00:15]}  Ne4 {[%clk 0:00:12]} 36. Bxe4 {[%clk 0:00:12]}  dxe4 {[%clk 0:00:12]} 37. Rb2 {[%clk 0:00:12]}  Ra8 {[%clk 0:00:11]} 38. Rec2 {[%clk 0:00:12]}  g5 {[%clk 0:00:12]} 39. hxg5 {[%clk 0:00:09]}  hxg5 {[%clk 0:00:12]} 40. Rb5 {[%clk 0:00:10]}  Qh5+ {[%clk 0:00:12]} 41. Kg2 {[%clk 0:00:10]}  Kg7 {[%clk 0:00:12]} 42. Rcc5 {[%clk 0:00:10]}  Qf3+ {[%clk 0:00:12]} 43. Kg1 {[%clk 0:00:10]}  f6 {[%clk 0:00:12]} 44. Rc7+ {[%clk 0:00:10]}  Kg6 {[%clk 0:00:13]} 45. Rbb7 {[%clk 0:00:10]}  Rxa2 {[%clk 0:00:11]} 46. Rg7+ {[%clk 0:00:09]}  Kf5 {[%clk 0:00:12]} 0-1


[Site "https://www.chess.com"]

[Event "Titled Tuesday Blitz December 14 2021"]
[White "Gurevich, Dmitry"]
[Black "Dobrov, Vladimir"]
[WhiteFideId "2000407"]
[BlackFideId "4136594"]
[WhiteElo "2506"]
[BlackElo "2614"]
[Result "0-1"]
[Round "05"]
[TimeControl "180+1"]
[Date "2021.12.15"]
[WhiteClock "0:00:02"]
[BlackClock "0:00:06"]

1. d4 {[%clk 0:03:00]}  Nf6 {[%clk 0:02:58]} 2. c4 {[%clk 0:03:00]}  e6 {[%clk 0:02:58]} 3. Nf3 {[%clk 0:02:59]}  d5 {[%clk 0:02:57]} 4. Nc3 {[%clk 0:02:58]}  c6 {[%clk 0:02:56]} 5. e3 {[%clk 0:02:54]}  Nbd7 {[%clk 0:02:56]} 6. Bd2 {[%clk 0:02:53]}  Bd6 {[%clk 0:02:54]} 7. Bd3 {[%clk 0:02:53]}  O-O {[%clk 0:02:53]} 8. O-O {[%clk 0:02:53]}  dxc4 {[%clk 0:02:36]} 9. Bxc4 {[%clk 0:02:52]}  b5 {[%clk 0:02:33]} 10. Bb3 {[%clk 0:02:52]}  Bb7 {[%clk 0:02:28]} 11. e4 {[%clk 0:02:47]}  e5 {[%clk 0:02:28]} 12. dxe5 {[%clk 0:02:41]}  Nxe5 {[%clk 0:02:28]} 13. Nxe5 {[%clk 0:02:39]}  Bxe5 {[%clk 0:02:27]} 14. Qe2 {[%clk 0:02:21]}  Re8 {[%clk 0:02:22]} 15. f3 {[%clk 0:02:15]}  Qb8 {[%clk 0:02:12]} 16. g3 {[%clk 0:02:14]}  a6 {[%clk 0:02:02]} 17. Be3 {[%clk 0:02:12]}  a5 {[%clk 0:01:35]} 18. Rfc1 {[%clk 0:02:07]}  a4 {[%clk 0:01:35]} 19. Bc2 {[%clk 0:02:03]}  a3 {[%clk 0:01:34]} 20. Bd3 {[%clk 0:01:22]}  Bxg3 {[%clk 0:01:05]} 21. hxg3 {[%clk 0:01:20]}  Qxg3+ {[%clk 0:01:04]} 22. Kf1 {[%clk 0:01:18]}  Nh5 {[%clk 0:00:20]} 23. b4 {[%clk 0:01:08]}  Qh4 {[%clk 0:00:19]} 24. Qf2 {[%clk 0:01:00]}  Qf6 {[%clk 0:00:18]} 25. f4 {[%clk 0:00:50]}  Rad8 {[%clk 0:00:18]} 26. e5 {[%clk 0:00:46]}  Qe7 {[%clk 0:00:16]} 27. Be2 {[%clk 0:00:36]}  Nf6 {[%clk 0:00:08]} 28. Bc5 {[%clk 0:00:32]}  Qe6 {[%clk 0:00:08]} 29. exf6 {[%clk 0:00:29]}  Qxf6 {[%clk 0:00:09]} 30. Rc2 {[%clk 0:00:20]}  Bc8 {[%clk 0:00:10]} 31. Qg3 {[%clk 0:00:17]}  Bf5 {[%clk 0:00:10]} 32. Rcc1 {[%clk 0:00:16]}  Rd2 {[%clk 0:00:06]} 33. Be3 {[%clk 0:00:14]}  Rb2 {[%clk 0:00:06]} 34. Nd1 {[%clk 0:00:14]}  h5 {[%clk 0:00:01]} 35. Qg5 {[%clk 0:00:09]}  Qxg5 {[%clk 0:00:01]} 36. fxg5 {[%clk 0:00:08]}  h4 {[%clk 0:00:02]} 37. Bd4 {[%clk 0:00:06]}  Rxb4 {[%clk 0:00:02]} 38. Bc3 {[%clk 0:00:06]}  Rf4+ {[%clk 0:00:03]} 39. Ke1 {[%clk 0:00:05]}  Bg4 {[%clk 0:00:04]} 40. Rc2 {[%clk 0:00:05]}  Rfe4 {[%clk 0:00:04]} 41. Rb1 {[%clk 0:00:04]}  Rxe2+ {[%clk 0:00:05]} 42. Rxe2 {[%clk 0:00:04]}  Rxe2+ {[%clk 0:00:05]} 43. Kf1 {[%clk 0:00:03]}  Rxa2 {[%clk 0:00:06]} 44. Bb4 {[%clk 0:00:04]}  Be2+ {[%clk 0:00:06]} 45. Ke1 {[%clk 0:00:03]}  Bxd1 {[%clk 0:00:05]} 46. Rxd1 {[%clk 0:00:02]}  h3 {[%clk 0:00:06]} 0-1


[Site "https://www.chess.com"]

[Event "Titled Tuesday Blitz December 14 2021"]
[White "Horvath, Dominik"]
[Black "Tsydypov, Zhamsaran"]
[WhiteFideId "1642561"]
[BlackFideId "4108566"]
[WhiteElo "2336"]
[BlackElo "2614"]
[Result "0-1"]
[Round "05"]
[TimeControl "180+1"]
[Date "2021.12.14"]
[WhiteClock "0:00:18"]
[BlackClock "0:01:28"]

1. e4 {[%clk 0:03:00]}  e5 {[%clk 0:02:55]} 2. Nf3 {[%clk 0:03:00]}  Nc6 {[%clk 0:02:54]} 3. d4 {[%clk 0:03:00]}  exd4 {[%clk 0:02:53]} 4. Nxd4 {[%clk 0:03:01]}  Bc5 {[%clk 0:02:53]} 5. Nb3 {[%clk 0:03:01]}  Bb6 {[%clk 0:02:53]} 6. Nc3 {[%clk 0:02:58]}  Nf6 {[%clk 0:02:52]} 7. Bg5 {[%clk 0:02:58]}  h6 {[%clk 0:02:52]} 8. Bh4 {[%clk 0:02:50]}  O-O {[%clk 0:02:50]} 9. Be2 {[%clk 0:02:49]}  d6 {[%clk 0:02:49]} 10. O-O {[%clk 0:02:47]}  Re8 {[%clk 0:02:49]} 11. a4 {[%clk 0:02:43]}  a6 {[%clk 0:02:42]} 12. a5 {[%clk 0:02:35]}  Ba7 {[%clk 0:02:42]} 13. Kh1 {[%clk 0:02:35]}  Ne5 {[%clk 0:02:07]} 14. Nd5 {[%clk 0:02:17]}  g5 {[%clk 0:02:06]} 15. Nxf6+ {[%clk 0:02:16]}  Qxf6 {[%clk 0:02:06]} 16. Bg3 {[%clk 0:02:16]}  Ng6 {[%clk 0:02:06]} 17. Nd2 {[%clk 0:01:31]}  Qxb2 {[%clk 0:02:01]} 18. Bc4 {[%clk 0:01:29]}  Qf6 {[%clk 0:01:58]} 19. Rb1 {[%clk 0:01:27]}  Kg7 {[%clk 0:01:52]} 20. Bd5 {[%clk 0:01:25]}  Rb8 {[%clk 0:01:51]} 21. Nc4 {[%clk 0:01:18]}  Nf4 {[%clk 0:01:50]} 22. Ne3 {[%clk 0:01:15]}  c6 {[%clk 0:01:48]} 23. Ba2 {[%clk 0:00:46]}  Rxe4 {[%clk 0:01:47]} 24. Re1 {[%clk 0:00:35]}  Ra4 {[%clk 0:01:40]} 25. Bb3 {[%clk 0:00:32]}  Rxa5 {[%clk 0:01:40]} 26. Qf3 {[%clk 0:00:25]}  Re5 {[%clk 0:01:36]} 27. Nc4 {[%clk 0:00:25]}  Rxe1+ {[%clk 0:01:36]} 28. Rxe1 {[%clk 0:00:26]}  Be6 {[%clk 0:01:28]} 29. Nxd6 {[%clk 0:00:19]}  Bxb3 {[%clk 0:01:28]} 30. Ne8+ {[%clk 0:00:17]}  Rxe8 {[%clk 0:01:28]} 31. Rxe8 {[%clk 0:00:18]}  Qa1+ {[%clk 0:01:28]} 0-1


[Site "https://www.chess.com"]

[Event "Titled Tuesday Blitz December 14 2021"]
[White "Kamsky, Gata"]
[Black "Sipila, Vilka"]
[WhiteFideId "2000024"]
[BlackFideId "505455"]
[WhiteElo "2645"]
[BlackElo "2334"]
[Result "1/2-1/2"]
[Round "05"]
[TimeControl "180+1"]
[Date "2021.12.14"]
[WhiteClock "0:00:16"]
[BlackClock "0:00:11"]

1. e4 {[%clk 0:03:00]}  c6 {[%clk 0:02:59]} 2. d4 {[%clk 0:03:00]}  d5 {[%clk 0:03:00]} 3. exd5 {[%clk 0:02:58]}  cxd5 {[%clk 0:03:00]} 4. Bd3 {[%clk 0:02:57]}  Nc6 {[%clk 0:03:00]} 5. c3 {[%clk 0:02:58]}  Nf6 {[%clk 0:03:01]} 6. Bf4 {[%clk 0:02:54]}  Bg4 {[%clk 0:03:01]} 7. Qb3 {[%clk 0:02:52]}  Qd7 {[%clk 0:03:01]} 8. Nd2 {[%clk 0:02:52]}  e6 {[%clk 0:03:01]} 9. Ngf3 {[%clk 0:02:52]}  Bd6 {[%clk 0:03:02]} 10. Bg3 {[%clk 0:02:49]}  O-O {[%clk 0:03:00]} 11. O-O {[%clk 0:02:47]}  Rab8 {[%clk 0:02:42]} 12. a4 {[%clk 0:02:46]}  Qc7 {[%clk 0:02:32]} 13. Rfe1 {[%clk 0:02:44]}  Ne7 {[%clk 0:02:30]} 14. Bxd6 {[%clk 0:02:37]}  Qxd6 {[%clk 0:02:29]} 15. Ne5 {[%clk 0:02:38]}  Bf5 {[%clk 0:02:30]} 16. Bf1 {[%clk 0:02:36]}  Ne4 {[%clk 0:02:27]} 17. Nxe4 {[%clk 0:02:35]}  Bxe4 {[%clk 0:02:27]} 18. Qa3 {[%clk 0:02:32]}  Qxa3 {[%clk 0:02:26]} 19. Rxa3 {[%clk 0:02:31]}  Rfd8 {[%clk 0:02:25]} 20. a5 {[%clk 0:02:30]}  f6 {[%clk 0:02:21]} 21. Ng4 {[%clk 0:02:30]}  Kf7 {[%clk 0:02:19]} 22. f3 {[%clk 0:02:24]}  Bg6 {[%clk 0:02:14]} 23. g3 {[%clk 0:02:13]}  Nc6 {[%clk 0:02:12]} 24. Bb5 {[%clk 0:02:11]}  Rbc8 {[%clk 0:02:10]} 25. Kf2 {[%clk 0:02:07]}  Ke7 {[%clk 0:01:55]} 26. h4 {[%clk 0:01:56]}  Rc7 {[%clk 0:01:52]} 27. Ne3 {[%clk 0:01:49]}  h5 {[%clk 0:01:44]} 28. Ng2 {[%clk 0:01:48]}  Bf7 {[%clk 0:01:42]} 29. Nf4 {[%clk 0:01:47]}  Rd6 {[%clk 0:01:35]} 30. Nd3 {[%clk 0:01:45]}  Kf8 {[%clk 0:01:31]} 31. Bxc6 {[%clk 0:01:36]}  Rdxc6 {[%clk 0:01:28]} 32. Rb3 {[%clk 0:01:31]}  e5 {[%clk 0:01:16]} 33. Rb4 {[%clk 0:01:27]}  exd4 {[%clk 0:01:08]} 34. Rxd4 {[%clk 0:01:21]}  Rc4 {[%clk 0:01:09]} 35. Ke3 {[%clk 0:01:14]}  Re7+ {[%clk 0:01:06]} 36. Kd2 {[%clk 0:01:14]}  Rxd4 {[%clk 0:01:04]} 37. cxd4 {[%clk 0:01:14]}  Rxe1 {[%clk 0:01:03]} 38. Kxe1 {[%clk 0:01:14]}  Ke7 {[%clk 0:01:03]} 39. Nc5 {[%clk 0:01:13]}  b6 {[%clk 0:00:59]} 40. axb6 {[%clk 0:01:13]}  axb6 {[%clk 0:00:59]} 41. Na4 {[%clk 0:01:13]}  Kd6 {[%clk 0:00:54]} 42. Kf2 {[%clk 0:01:08]}  Kc6 {[%clk 0:00:51]} 43. Nc3 {[%clk 0:01:07]}  Be6 {[%clk 0:00:48]} 44. Ke3 {[%clk 0:01:05]}  Bd7 {[%clk 0:00:46]} 45. Kf4 {[%clk 0:01:05]}  Kd6 {[%clk 0:00:45]} 46. g4 {[%clk 0:01:05]}  g6 {[%clk 0:00:41]} 47. g5 {[%clk 0:01:02]}  f5 {[%clk 0:00:23]} 48. Ke3 {[%clk 0:01:01]}  Be8 {[%clk 0:00:19]} 49. Kd3 {[%clk 0:00:57]}  Bd7 {[%clk 0:00:18]} 50. Kc2 {[%clk 0:00:57]}  Be8 {[%clk 0:00:12]} 51. Kb3 {[%clk 0:00:57]}  Bd7 {[%clk 0:00:11]} 52. Kb4 {[%clk 0:00:55]}  Kc6 {[%clk 0:00:08]} 53. Ne2 {[%clk 0:00:54]}  Be8 {[%clk 0:00:08]} 54. Nf4 {[%clk 0:00:54]}  Bf7 {[%clk 0:00:08]} 55. Nd3 {[%clk 0:00:51]}  Be8 {[%clk 0:00:08]} 56. Ne5+ {[%clk 0:00:47]}  Kd6 {[%clk 0:00:08]} 57. Kc3 {[%clk 0:00:46]}  Ke6 {[%clk 0:00:08]} 58. Nd3 {[%clk 0:00:37]}  Kd6 {[%clk 0:00:08]} 59. Kb4 {[%clk 0:00:37]}  Kc6 {[%clk 0:00:08]} 60. Ka4 {[%clk 0:00:35]}  Kd6+ {[%clk 0:00:08]} 61. Kb3 {[%clk 0:00:34]}  Kc6 {[%clk 0:00:09]} 62. Kb4 {[%clk 0:00:33]}  Kd6 {[%clk 0:00:09]} 63. Ne5 {[%clk 0:00:34]}  Kc7 {[%clk 0:00:08]} 64. Nd3 {[%clk 0:00:31]}  Kd6 {[%clk 0:00:08]} 65. Nf4 {[%clk 0:00:32]}  Kc6 {[%clk 0:00:06]} 66. Kc3 {[%clk 0:00:24]}  Kd6 {[%clk 0:00:07]} 67. b4 {[%clk 0:00:22]}  Bf7 {[%clk 0:00:06]} 68. Kd2 {[%clk 0:00:22]}  Be8 {[%clk 0:00:07]} 69. Ne2 {[%clk 0:00:23]}  Bf7 {[%clk 0:00:07]} 70. Nc3 {[%clk 0:00:23]}  Be8 {[%clk 0:00:08]} 71. b5 {[%clk 0:00:23]}  Ke6 {[%clk 0:00:08]} 72. Kc2 {[%clk 0:00:23]}  Kd6 {[%clk 0:00:08]} 73. Kb3 {[%clk 0:00:23]}  Ke6 {[%clk 0:00:09]} 74. Kb4 {[%clk 0:00:24]}  Kd6 {[%clk 0:00:09]} 75. Ne2 {[%clk 0:00:23]}  Bd7 {[%clk 0:00:09]} 76. Nf4 {[%clk 0:00:23]}  Be8 {[%clk 0:00:10]} 77. Nd3 {[%clk 0:00:22]}  Ke6 {[%clk 0:00:09]} 78. Nb2 {[%clk 0:00:21]}  Kd6 {[%clk 0:00:09]} 79. Na4 {[%clk 0:00:22]}  Kc7 {[%clk 0:00:10]} 80. Nc3 {[%clk 0:00:22]}  Kd6 {[%clk 0:00:10]} 81. Kb3 {[%clk 0:00:23]}  Bd7 {[%clk 0:00:09]} 82. Kc2 {[%clk 0:00:23]}  Be8 {[%clk 0:00:10]} 83. Kd3 {[%clk 0:00:23]}  Bd7 {[%clk 0:00:10]} 84. Ke3 {[%clk 0:00:23]}  Be8 {[%clk 0:00:10]} 85. Kf4 {[%clk 0:00:24]}  Bd7 {[%clk 0:00:10]} 86. Ke3 {[%clk 0:00:18]}  Be8 {[%clk 0:00:10]} 87. Kd3 {[%clk 0:00:16]}  Bd7 {[%clk 0:00:11]} 88. Kc2 {[%clk 0:00:16]}  Be8 {[%clk 0:00:11]} 1/2-1/2


[Site "https://www.chess.com"]

[Event "Titled Tuesday Blitz December 14 2021"]
[White "Kanyamarala, Tarun"]
[Black "Erdogdu, Mert"]
[WhiteFideId "45004714"]
[BlackFideId "6301495"]
[WhiteElo "2077"]
[BlackElo "2485"]
[Result "1-0"]
[Round "05"]
[TimeControl "180+1"]
[Date "2021.12.15"]
[WhiteClock "0:00:07"]
[BlackClock "0:00:07"]

1. d4 {[%clk 0:03:00]}  d5 {[%clk 0:02:42]} 2. c4 {[%clk 0:03:00]}  e6 {[%clk 0:02:41]} 3. Nc3 {[%clk 0:02:56]}  c5 {[%clk 0:02:42]} 4. e3 {[%clk 0:02:51]}  Nf6 {[%clk 0:02:41]} 5. Nf3 {[%clk 0:02:51]}  a6 {[%clk 0:02:40]} 6. cxd5 {[%clk 0:02:40]}  exd5 {[%clk 0:02:40]} 7. Be2 {[%clk 0:02:39]}  Nc6 {[%clk 0:02:40]} 8. O-O {[%clk 0:02:38]}  cxd4 {[%clk 0:02:36]} 9. Nxd4 {[%clk 0:02:34]}  Bd6 {[%clk 0:02:36]} 10. b3 {[%clk 0:02:29]}  O-O {[%clk 0:02:34]} 11. Bb2 {[%clk 0:02:26]}  Re8 {[%clk 0:02:33]} 12. Rc1 {[%clk 0:02:20]}  Bd7 {[%clk 0:02:08]} 13. Nxc6 {[%clk 0:02:00]}  Bxc6 {[%clk 0:02:03]} 14. Bf3 {[%clk 0:02:00]}  Ne4 {[%clk 0:02:02]} 15. h3 {[%clk 0:01:22]}  Qd7 {[%clk 0:01:39]} 16. Nxe4 {[%clk 0:01:08]}  dxe4 {[%clk 0:01:38]} 17. Qd4 {[%clk 0:01:08]}  f6 {[%clk 0:01:18]} 18. Be2 {[%clk 0:00:51]}  Rad8 {[%clk 0:01:17]} 19. Bc4+ {[%clk 0:00:36]}  Kh8 {[%clk 0:01:16]} 20. Kh1 {[%clk 0:00:30]}  Qe7 {[%clk 0:01:08]} 21. Qc3 {[%clk 0:00:16]}  Bb4 {[%clk 0:01:02]} 22. Qc2 {[%clk 0:00:17]}  Rd2 {[%clk 0:01:02]} 23. Qb1 {[%clk 0:00:17]}  Red8 {[%clk 0:00:59]} 24. Bxa6 {[%clk 0:00:14]}  Bd6 {[%clk 0:00:36]} 25. Bc4 {[%clk 0:00:11]}  Bb8 {[%clk 0:00:36]} 26. Bc3 {[%clk 0:00:07]}  Qc7 {[%clk 0:00:35]} 27. g3 {[%clk 0:00:06]}  R2d7 {[%clk 0:00:25]} 28. Rfd1 {[%clk 0:00:06]}  h5 {[%clk 0:00:21]} 29. Be6 {[%clk 0:00:05]}  Rxd1+ {[%clk 0:00:18]} 30. Rxd1 {[%clk 0:00:05]}  h4 {[%clk 0:00:16]} 31. Rxd8+ {[%clk 0:00:03]}  Qxd8 {[%clk 0:00:17]} 32. Qg1 {[%clk 0:00:02]}  hxg3 {[%clk 0:00:16]} 33. fxg3 {[%clk 0:00:02]}  Qd3 {[%clk 0:00:16]} 34. Bd4 {[%clk 0:00:02]}  Qc2 {[%clk 0:00:10]} 35. Qg2 {[%clk 0:00:02]}  Qd1+ {[%clk 0:00:08]} 36. Kh2 {[%clk 0:00:03]}  Qh5 {[%clk 0:00:07]} 37. Bg4 {[%clk 0:00:03]}  Qh6 {[%clk 0:00:07]} 38. Qf2 {[%clk 0:00:04]}  Bd6 {[%clk 0:00:06]} 39. Qf5 {[%clk 0:00:02]}  Kg8 {[%clk 0:00:03]} 40. Qc8+ {[%clk 0:00:03]}  Kh7 {[%clk 0:00:04]} 41. Qf5+ {[%clk 0:00:03]}  Kh8 {[%clk 0:00:03]} 42. Qe6 {[%clk 0:00:02]}  Kh7 {[%clk 0:00:03]} 43. Qxd6 {[%clk 0:00:02]}  Qg5 {[%clk 0:00:04]} 44. Qf4 {[%clk 0:00:02]}  Qb5 {[%clk 0:00:04]} 45. Bf5+ {[%clk 0:00:03]}  Kg8 {[%clk 0:00:04]} 46. Be6+ {[%clk 0:00:03]}  Kh7 {[%clk 0:00:05]} 47. Qh4+ {[%clk 0:00:04]}  Kg6 {[%clk 0:00:05]} 48. Qg4+ {[%clk 0:00:04]}  Kh7 {[%clk 0:00:05]} 49. Qf5+ {[%clk 0:00:04]}  Qxf5 {[%clk 0:00:05]} 50. Bxf5+ {[%clk 0:00:05]}  g6 {[%clk 0:00:05]} 51. Be6 {[%clk 0:00:06]}  f5 {[%clk 0:00:05]} 52. g4 {[%clk 0:00:06]}  f4 {[%clk 0:00:05]} 53. exf4 {[%clk 0:00:06]}  Kh6 {[%clk 0:00:05]} 54. Kg3 {[%clk 0:00:06]}  Bb5 {[%clk 0:00:03]} 55. Bg8 {[%clk 0:00:06]}  Bd3 {[%clk 0:00:03]} 56. Be3 {[%clk 0:00:06]}  Bb1 {[%clk 0:00:03]} 57. Bc4 {[%clk 0:00:06]}  Bxa2 {[%clk 0:00:03]} 58. f5+ {[%clk 0:00:06]}  Kh7 {[%clk 0:00:03]} 59. Kf4 {[%clk 0:00:06]}  gxf5 {[%clk 0:00:03]} 60. gxf5 {[%clk 0:00:06]}  b5 {[%clk 0:00:03]} 61. Bxb5 {[%clk 0:00:06]}  Bxb3 {[%clk 0:00:04]} 62. Bc6 {[%clk 0:00:07]}  Bc2 {[%clk 0:00:04]} 63. Bxe4 {[%clk 0:00:08]}  Bb3 {[%clk 0:00:04]} 64. Bd4 {[%clk 0:00:08]}  Bf7 {[%clk 0:00:05]} 65. h4 {[%clk 0:00:08]}  Kh6 {[%clk 0:00:06]} 66. Be3 {[%clk 0:00:08]}  Kh5 {[%clk 0:00:06]} 67. Bf2 {[%clk 0:00:07]}  Kh6 {[%clk 0:00:06]} 68. Ke5 {[%clk 0:00:08]}  Kh5 {[%clk 0:00:06]} 69. Kf6 {[%clk 0:00:08]}  Bd5 {[%clk 0:00:07]} 70. Bxd5 {[%clk 0:00:07]} 1-0


[Site "https://www.chess.com"]